bitfinex/quotes_ETHUSD_20250505
["timestamp","ask_amount","ask_price","bid_price","bid_amount"]
[1746453533048,0.66982042,1812.1,1811.8,5.5190867]
[1746453533227,0.66982042,1812.1,1811.9,5.51897693]
[1746453533939,0.66982042,1812.1,1811.8,5.5190867]
[1746453534780,0.66982042,1812.1,1811.9,11.03782616]
[1746453534938,3.0,1812.2,1811.9,5.51889449]
[1746453535277,14.45865923,1812.2,1811.9,5.51889449]
[1746453535461,14.45865923,1812.2,1811.8,5.5191203]
[1746453535665,5.51849551,1812.1,1811.7,5.51947726]
[1746453536281,14.45865923,1812.2,1811.8,5.51925751]
[1746453536575,6.96434016,1812.1,1811.8,5.51925751]
[1746453537577,6.96434016,1812.1,1811.7,11.03898687]
[1746453537782,6.96434016,1812.1,1811.8,5.51929462]
[1746453537961,1.44586592,1812.1,1811.8,5.51929462]
[1746453538164,8.94046102,1812.2,1811.9,5.51885005]
[1746453538878,14.45866754,1812.2,1811.9,5.51885005]
[1746453539179,8.94046102,1812.2,1811.9,5.51885005]
[1746453539350,8.94046102,1812.2,1811.9,5.51894003]
[1746453539550,10.4626195,1812.2,1811.9,5.51894003]
[1746453540152,3.0,1812.2,1811.8,0.799]
[1746453540369,0.7631,1812.3,1812.1,5.51845924]
[1746453540562,5.51665385,1812.7,1812.1,5.51845924]
[1746453540563,0.8168,1812.8,1812.2,0.8019]
[1746453540768,11.45751558,1812.6,1812.2,6.37503065]
[1746453540951,12.60326714,1812.6,1812.2,6.3197516]
[1746453541155,7.08621258,1812.6,1812.3,5.51755558]
[1746453541369,7.08621258,1812.6,1812.3,5.51785024]
[1746453541569,7.08621258,1812.6,1812.3,5.5176385]
[1746453541899,1.14575156,1812.6,1812.4,5.51754312]
[1746453542187,5.51677023,1812.7,1812.3,5.5176385]
[1746453543063,9.75305425,1812.8,1812.3,5.51762407]
[1746453543378,15.26967642,1812.8,1812.4,5.51741697]
[1746453543581,9.75305425,1812.8,1812.4,5.51741697]
[1746453543891,5.51672522,1812.7,1812.3,5.51762407]
[1746453544057,0.55167252,1812.6,1812.3,5.51762407]
[1746453544375,5.51618088,1812.9,1812.5,5.51711653]
[1746453544575,11.03377727,1812.7,1812.3,5.51770009]
[1746453544776,5.51685231,1812.7,1812.2,6.31990803]
[1746453545079,5.51685231,1812.7,1812.3,5.5176818]
[1746453545265,5.51647252,1812.8,1812.4,5.51737038]
[1746453545442,6.06841411,1812.7,1812.3,5.5176818]
[1746453545638,0.55164725,1812.7,1812.4,5.5174643]
[1746453545843,0.55164725,1812.7,1812.4,11.03480935]
[1746453546044,0.55164725,1812.7,1812.4,5.51731892]
[1746453546654,0.55164725,1812.7,1812.5,5.5171896]
[1746453546860,0.55164725,1812.7,1812.4,5.51731892]
[1746453547992,0.55164725,1812.7,1812.5,5.51719546]
[1746453548160,0.55164725,1812.7,1812.4,5.51731892]
[1746453548686,6.06829208,1812.7,1812.4,5.51731892]
[1746453548986,0.55164725,1812.7,1812.4,5.51731892]
[1746453549167,3.0,1812.9,1812.4,0.05517231]
[1746453549371,3.0,1812.8,1812.5,11.03426209]
[1746453549583,3.0,1812.8,1812.6,5.51692899]
[1746453549881,3.0,1812.8,1812.5,5.51705602]
[1746453551060,3.0,1812.8,1812.5,5.51704717]
[1746453551256,5.51616374,1812.9,1812.8,5.51617526]
[1746453551257,3.0,1812.9,1812.8,5.51617526]
[1746453551876,0.41185618,1813.0,1812.8,11.03230614]
[1746453552189,3.7878,1813.2,1812.6,6.30811997]
[1746453552392,5.51591818,1813.0,1812.6,11.82488187]
[1746453552555,8.51592177,1813.0,1812.6,6.3079619]
[1746453552893,9.91907346,1813.0,1812.7,5.51662899]
[1746453553185,9.91907346,1813.0,1812.7,5.51661952]
[1746453553691,4.40315169,1813.0,1812.6,6.3079619]
[1746453553895,9.91901021,1813.0,1812.7,5.51663144]
[1746453554098,9.91901021,1813.0,1812.6,11.82471929]
[1746453554099,9.91901235,1813.0,1812.6,11.82471929]
[1746453554297,9.91901235,1813.0,1812.7,5.51660578]
[1746453554463,4.40315169,1813.0,1812.7,5.51660578]
[1746453554663,9.30311917,1813.2,1812.7,5.51660578]
[1746453555202,14.81847665,1813.2,1812.7,5.51660578]
[1746453555403,9.72132336,1813.2,1812.7,5.51660578]
[1746453555566,4.20600419,1813.2,1812.6,6.30812423]
[1746453555765,4.20600419,1813.2,1812.8,5.51607592]
[1746453556268,9.72122626,1813.2,1812.8,5.51607592]
[1746453556787,4.20600419,1813.2,1812.8,5.51607592]
[1746453557001,4.20600419,1813.2,1812.8,11.03219883]
[1746453557318,4.20600419,1813.2,1812.9,5.5159138]
[1746453558086,9.7211183,1813.2,1812.9,5.5159138]
[1746453558625,4.20600419,1813.2,1812.9,5.5159138]
[1746453558789,4.20600419,1813.2,1812.9,5.51585986]
[1746453559617,0.7777,1813.5,1813.2,5.51492412]
[1746453560005,3.7777,1813.5,1813.2,5.51492412]
[1746453560206,9.29201184,1813.5,1813.0,5.51551039]
[1746453560413,3.0,1813.4,1813.1,5.51539298]
[1746453560608,0.6990587,1813.6,1812.8,5.51632064]
[1746453560793,5.51390888,1813.6,1813.3,5.51470421]
[1746453560994,3.0,1813.5,1813.3,5.51470421]
[1746453561415,3.0,1813.5,1813.3,5.51462101]
[1746453561591,3.0,1813.5,1813.4,5.51450314]
[1746453561994,3.0,1813.5,1813.3,5.51462101]
[1746453562440,0.7962,1813.7,1813.5,5.5140345]
[1746453562745,0.42330478,1813.8,1813.7,5.513591]
[1746453563035,6.92568403,1814.0,1813.7,5.513591]
[1746453563237,6.92568403,1814.0,1813.3,6.3323005]
[1746453563238,3.58018581,1814.0,1813.3,6.3323005]
[1746453563397,3.28900325,1814.1,1813.8,5.51305986]
[1746453563733,3.0,1814.1,1813.8,5.51305715]
[1746453563899,8.51251258,1814.1,1813.7,5.51338415]
[1746453564103,6.26747821,1814.4,1814.0,5.51255866]
[1746453564331,3.0,1814.3,1814.0,5.51247458]
[1746453564736,6.26747821,1814.4,1814.0,5.51247458]
[1746453564913,1.17650805,1814.4,1814.1,5.51232735]
[1746453565114,11.09396483,1814.6,1814.1,5.51232735]
[1746453565115,11.36674719,1814.6,1814.1,5.51214712]
[1746453565461,5.51117027,1814.5,1814.1,5.51211815]
[1746453565638,5.51117027,1814.5,1814.2,5.51203689]
[1746453565940,0.7606,1814.6,1814.3,5.51166316]
[1746453566139,5.5105527,1814.7,1814.2,6.61427113]
[1746453566345,3.0,1814.6,1814.3,5.51174638]
[1746453566715,6.29701187,1814.8,1814.3,5.51154916]
[1746453566912,8.51072665,1814.7,1814.3,5.51154916]
[1746453567446,3.0,1814.5,1814.1,5.51221218]
[1746453567625,3.0,1814.5,1814.1,5.51220851]
[1746453567812,8.51135673,1814.5,1814.1,11.02437017]
[1746453568016,8.5112669,1814.5,1814.1,11.0243721]
[1746453568218,8.5112669,1814.5,1814.2,5.51203193]
[1746453568418,8.5112669,1814.5,1814.1,5.51216166]
[1746453568613,3.0,1814.5,1814.1,0.63404617]
[1746453568835,0.4094301,1814.6,1814.3,5.51170702]
[1746453569030,14.02151287,1814.7,1814.2,5.51193119]
[1746453569234,8.51068471,1814.7,1814.2,5.51190935]
[1746453569444,8.51088038,1814.6,1814.2,5.51190935]
[1746453569744,3.0,1814.6,1813.7,0.55133842]
[1746453569944,3.7642,1814.4,1814.0,5.51255981]
[1746453570246,3.7642,1814.4,1814.1,5.51222185]
[1746453570410,0.7642,1814.4,1814.2,5.5119433]
[1746453570747,4.16706071,1814.6,1814.1,5.51221352]
[1746453570924,8.51126971,1814.5,1814.1,5.51218359]
[1746453571118,3.0,1814.5,1814.2,5.51205536]
[1746453571318,3.0,1814.5,1814.2,5.51188932]
[1746453572484,3.0,1814.5,1814.3,5.51169914]
[1746453572687,3.0,1814.5,1814.2,6.39330058]
[1746453572887,0.41656071,1814.6,1814.3,5.5116978]
[1746453573109,5.51088048,1814.6,1814.3,5.5116978]
[1746453573267,8.51072021,1814.7,1814.3,5.5116978]
[1746453573459,9.36261648,1814.7,1814.3,5.5116978]
[1746453573659,14.87341891,1814.7,1814.3,5.5116978]
[1746453573888,14.87341891,1814.7,1814.4,5.51134264]
[1746453573889,3.85189627,1814.7,1814.4,5.51134264]
[1746453574196,8.5105931,1814.7,1814.3,5.51156898]
[1746453574606,8.5105931,1814.7,1814.4,5.51145705]
[1746453574812,3.0,1814.5,1814.3,5.51156898]
[1746453575097,8.51128166,1814.5,1814.1,5.51209679]
[1746453575401,3.0,1814.5,1814.2,5.51195017]
[1746453575599,8.511179,1814.5,1814.1,11.02429282]
[1746453575790,8.511179,1814.5,1814.2,5.51204639]
[1746453575964,3.0,1814.5,1814.2,5.51204639]
[1746453576582,3.0,1814.5,1814.2,5.51188252]
[1746453576766,3.0,1814.5,1814.2,11.02378468]
[1746453577088,3.0,1814.5,1814.3,5.51175392]
[1746453577289,3.0,1814.5,1814.2,5.51189123]
[1746453577993,3.0,1814.5,1814.2,5.51187935]
[1746453578191,3.0,1814.5,1814.1,5.51237528]
[1746453578421,0.41976683,1814.6,1814.1,0.63440931]
[1746453578581,0.41976683,1814.6,1814.0,0.7766]
[1746453578903,0.40600263,1814.7,1814.0,0.7766]
[1746453579080,0.7606,1814.8,1814.0,0.7766]
[1746453580305,0.7606,1814.8,1814.1,0.05511755]
[1746453581216,0.7606,1814.8,1814.0,0.7766]
[1746453581913,0.7606,1814.8,1814.1,0.05511016]
[1746453582095,1.17493577,1814.8,1814.0,0.7766]
[1746453582308,0.8155,1814.7,1813.4,0.815]
[1746453582609,0.8155,1814.7,1813.6,0.815]
[1746453582909,0.8155,1814.7,1813.7,0.0551252]
[1746453583704,0.7656,1814.6,1813.6,0.815]
[1746453583918,0.7699,1814.4,1813.6,0.815]
[1746453585813,1.14689,1814.4,1813.6,0.815]
[1746453586020,1.14689,1814.4,1813.7,0.05513039]
[1746453586317,1.14689,1814.4,1813.6,0.815]
[1746453587279,0.7827,1814.3,1813.4,0.8285]
[1746453588693,0.7827,1814.3,1813.3,5.578]
[1746453588889,0.7827,1814.3,1813.4,0.61293102]
[1746453589217,0.7827,1814.3,1813.4,0.5578]
[1746453589919,0.7827,1814.3,1813.4,0.61293528]
[1746453590224,0.7827,1814.3,1813.4,0.5578]
[1746453590520,0.7827,1814.3,1813.4,0.61293894]
[1746453590719,0.7913,1814.2,1813.4,0.61293894]
[1746453591519,0.7913,1813.9,1813.1,0.8285]
[1746453591684,0.7913,1813.9,1813.2,0.05514288]
[1746453592293,0.7913,1813.9,1812.9,0.55163206]
[1746453592498,0.7913,1813.9,1813.1,0.7557]
[1746453592701,0.7913,1813.9,1813.2,0.05514289]
[1746453592898,1.17043,1813.9,1813.2,0.05514289]
[1746453593123,0.7913,1813.9,1813.2,0.05514289]
[1746453595334,6.2354,1814.1,1813.3,0.7862]
[1746453595698,6.2354,1814.1,1813.4,0.05513287]
[1746453595888,6.2354,1814.1,1813.3,0.7862]
[1746453596092,6.2354,1814.1,1813.4,0.0551341]
[1746453596292,7.15894,1814.1,1813.4,0.0551341]
[1746453597717,6.2354,1814.1,1813.4,0.0551341]
[1746453598113,0.8074,1814.1,1813.3,0.7862]
[1746453598332,0.7695,1814.5,1813.4,0.7577]
[1746453598499,0.7695,1814.5,1813.4,6.1857]
[1746453598916,0.7695,1814.5,1813.5,5.51419906]
[1746453599111,0.7695,1814.5,1813.7,0.7752]
[1746453599314,0.7695,1814.5,1813.8,0.05512338]
[1746453599535,0.7695,1814.5,1813.7,0.7752]
[1746453600448,0.005,1815.4,1814.5,0.7695]
[1746453600740,0.005,1816.2,1814.6,5.428]
[1746453600907,1.2289468,1815.9,1814.9,11.9036998]
[1746453601236,0.4141468,1815.9,1815.4,5.50816091]
[1746453601441,0.4141468,1815.9,1815.4,5.50840361]
[1746453601764,0.4141468,1815.9,1815.3,6.26699996]
[1746453601951,0.4141468,1815.9,1815.3,0.7584]
[1746453602091,0.4141468,1815.9,1814.3,3.0]
[1746453602092,0.4141468,1815.9,1815.4,0.05507291]
[1746453602293,0.4141468,1815.9,1815.0,6.333686]
[1746453602497,0.4141468,1815.9,1815.2,5.50903481]
[1746453602737,0.4141468,1815.9,1815.4,0.813]
[1746453603070,0.4141468,1815.9,1815.5,0.05507067]
[1746453603222,0.7508,1815.8,1814.8,0.813]
[1746453603600,0.7508,1815.8,1814.9,0.05508794]
[1746453603795,0.7508,1815.8,1815.0,0.0550839]
[1746453603796,5.666,1815.7,1815.0,0.0550839]
[1746453604009,0.7508,1815.8,1815.0,0.0550839]
[1746453604197,0.4141468,1815.9,1815.1,1.3641]
[1746453604396,0.4141468,1815.9,1815.1,6.4801]
[1746453604739,0.4141468,1815.9,1815.3,1.3664]
[1746453605039,0.4141468,1815.9,1815.4,0.05506284]
[1746453605241,5.50201489,1817.6,1815.4,0.05506284]
[1746453605242,1.0134,1818.3,1815.7,0.8115]
[1746453605422,0.8134,1817.7,1816.0,0.8115]
[1746453605732,0.8134,1817.7,1816.2,0.55]
[1746453605897,0.8134,1817.7,1816.4,0.55]
[1746453606094,0.8134,1817.7,1816.3,0.05502773]
[1746453606095,0.8134,1817.7,1816.6,0.8317]
[1746453606296,5.50176056,1817.6,1816.3,0.8317]
[1746453606519,6.7774,1817.5,1816.3,0.8317]
[1746453606724,6.7774,1817.5,1816.5,0.55]
[1746453606938,0.4141468,1817.8,1816.8,0.55]
[1746453607156,0.4141468,1817.8,1817.1,0.8175]
[1746453607557,0.4141468,1817.8,1817.2,0.05500992]
[1746453607856,0.7906,1817.7,1817.2,0.05501003]
[1746453608352,0.4141468,1817.8,1817.2,0.86481749]
[1746453608557,0.4141468,1817.8,1816.8,0.7716]
[1746453608744,0.4141468,1817.8,1816.9,0.05502293]
[1746453608940,0.83462148,1817.8,1817.0,0.05501663]
[1746453609145,0.8199,1817.7,1816.8,0.7716]
[1746453609361,0.8199,1817.7,1816.9,0.60502751]
[1746453609563,0.8199,1817.7,1816.9,0.55]
[1746453609765,0.83462148,1817.8,1816.9,0.55]
[1746453609766,0.4141468,1817.8,1817.0,0.79]
[1746453609981,0.4141468,1817.8,1817.2,0.55]
[1746453610283,0.4141468,1817.8,1817.3,0.84500267]
[1746453610597,0.4141468,1817.8,1817.4,0.55]
[1746453610762,0.4141468,1817.8,1817.5,0.05500278]
[1746453610963,0.4141468,1817.8,1817.4,0.55]
[1746453611538,0.4141468,1817.8,1817.3,0.79]
[1746453611987,1.1753468,1817.8,1817.1,6.203]
[1746453612281,1.1753468,1817.8,1817.2,0.05501469]
[1746453612484,1.1753468,1817.8,1817.1,6.90571]
[1746453612800,0.4141468,1817.8,1817.5,0.55]
[1746453612955,0.4141468,1817.8,1817.4,0.79]
[1746453613286,0.4141468,1817.8,1817.5,0.60500318]
[1746453613456,10.0,1818.0,1817.8,0.55]
[1746453613653,10.0,1818.0,1817.9,1.42489373]
[1746453613849,7.53667677,1818.0,1817.9,1.3699]
[1746453614045,7.48168672,1818.0,1817.9,9.87075263]
[1746453614252,1.2418468,1819.6,1818.4,0.7665]
[1746453614466,0.7779,1819.5,1818.4,0.7665]
[1746453614666,0.7779,1819.3,1818.4,0.7665]
[1746453614873,0.82472665,1819.6,1818.3,6.201]
[1746453614874,0.05496272,1819.2,1818.3,6.201]
[1746453615065,0.8068,1819.1,1818.0,0.8015]
[1746453615267,0.05496272,1819.0,1818.0,0.8015]
[1746453615555,0.7631,1818.9,1818.0,0.8015]
[1746453615760,3.0,1818.5,1816.5,5.70488664]
[1746453615994,0.7631,1818.3,1816.7,5.50420393]
[1746453616203,0.7631,1818.3,1816.8,0.05500686]
[1746453616204,0.05496272,1818.2,1816.8,0.05500686]
[1746453616371,0.05496272,1818.2,1816.9,6.361]
[1746453616695,0.7631,1818.3,1817.1,5.50327444]
[1746453616895,0.05496272,1818.7,1817.2,23.7129716]
[1746453617099,0.8251,1818.6,1817.2,29.2159432]
[1746453617299,0.8251,1818.6,1817.5,0.55]
[1746453617462,0.8251,1818.6,1817.5,6.911]
[1746453617664,0.10634925,1818.5,1817.7,0.55]
[1746453617865,0.87436272,1819.0,1817.8,0.0549843]
[1746453618064,0.16167831,1818.9,1817.7,0.7664]
[1746453618294,0.8332,1818.8,1817.7,0.7664]
[1746453618609,0.8325,1818.6,1817.6,7.0521]
[1746453618808,0.8325,1818.6,1817.7,0.70521]
[1746453619031,0.16735051,1818.5,1817.6,6.361]
[1746453619185,0.11238779,1818.5,1817.6,6.361]
[1746453619509,0.8325,1818.6,1817.7,0.05499196]
[1746453619807,0.8325,1818.6,1817.6,6.361]
[1746453620016,0.7681,1818.4,1817.7,0.05499099]
[1746453620167,0.7681,1818.4,1817.7,0.6415991]
[1746453620367,0.11218679,1818.3,1817.7,0.6415991]
[1746453620811,0.11218679,1818.3,1817.7,0.69659066]
[1746453621112,0.11218679,1818.3,1817.6,6.361]
[1746453621267,0.7829,1818.2,1817.7,0.05500232]
[1746453621467,0.7829,1818.2,1817.4,0.7573]
[1746453621716,0.11547764,1818.1,1817.2,24.57]
[1746453621953,0.17044036,1818.1,1817.3,0.05500871]
[1746453622149,0.11547764,1818.1,1817.3,2.51750958]
[1746453622337,0.76,1818.0,1817.2,24.57]
[1746453622544,0.05496272,1817.9,1817.2,24.57]
[1746453622755,0.16840136,1817.9,1817.2,24.57]
[1746453622956,0.11343864,1817.9,1817.3,0.05501268]
[1746453623358,0.11343864,1817.9,1817.2,6.36]
[1746453623359,0.8048,1817.8,1817.2,6.36]
[1746453623669,0.11311387,1817.7,1817.2,6.36]
[1746453624278,0.11311387,1817.7,1817.3,0.05502059]
[1746453624424,0.821,1818.1,1817.4,0.782]
[1746453624623,0.821,1818.1,1817.5,0.05499957]
[1746453624871,0.821,1818.1,1817.4,0.782]
[1746453625025,0.821,1818.1,1817.5,0.05500025]
[1746453625436,0.05496272,1818.5,1817.5,0.05500025]
[1746453625437,0.7807,1818.4,1817.5,0.05500025]
[1746453625653,0.7807,1818.4,1817.5,0.55]
[1746453625966,0.7807,1818.4,1817.5,0.60499676]
[1746453626335,0.05496272,1818.3,1817.4,0.782]
[1746453626836,1.16426627,1818.4,1817.5,0.05500066]
[1746453627039,0.7807,1818.4,1817.5,0.60500066]
[1746453627250,0.7807,1818.4,1817.5,0.55]
[1746453627471,0.0867,1818.4,1817.4,0.782]
[1746453627776,0.66666667,1817.7,1817.6,0.05499349]
[1746453628077,0.66666667,1817.7,1817.4,7.141]
[1746453628390,0.66666667,1817.7,1817.5,1.31909591]
[1746453628793,0.66666667,1817.7,1817.6,0.753]
[1746453629446,0.66666667,1817.7,1817.6,1.303]
[1746453630770,0.8116,1818.8,1817.8,3.0]
[1746453630971,0.8116,1818.8,1817.7,6.27235788]
[1746453631175,0.8116,1818.8,1817.8,0.62723579]
[1746453631488,0.8116,1818.8,1817.8,6.98523579]
[1746453632985,0.7591,1818.6,1817.9,0.05499074]
[1746453633202,0.7591,1818.4,1817.9,0.05499498]
[1746453633399,0.7591,1818.1,1817.5,18.9161]
[1746453633598,0.05496272,1818.0,1817.6,1.89161]
[1746453633911,0.8262,1818.0,1817.6,0.05500833]
[1746453634096,0.8262,1818.0,1817.5,0.7141]
[1746453634265,4.720587,1818.3,1817.6,0.05500094]
[1746453634597,4.720587,1818.3,1817.5,0.7141]
[1746453634903,6.38857039,1818.9,1817.7,0.55]
[1746453635076,0.42084997,1819.0,1818.0,0.55]
[1746453635077,0.10318131,1818.3,1818.0,0.55]
[1746453635263,6.77784997,1819.0,1818.0,7.51205593]
[1746453635464,0.1589051,1818.9,1818.0,12.46260338]
[1746453635685,0.10394238,1818.9,1818.0,12.46260338]
[1746453635994,0.10394238,1818.9,1818.4,5.49905417]
[1746453636161,0.4172575,1819.4,1818.5,0.85806728]
[1746453636359,12.74557039,1819.9,1818.7,0.818]
[1746453636360,0.05496272,1819.8,1818.7,0.818]
[1746453636690,6.64503887,1820.1,1818.7,0.818]
[1746453636691,0.05496272,1820.0,1818.9,5.49782835]
[1746453636887,0.10497729,1819.5,1819.1,0.818]
[1746453637200,0.10497729,1819.5,1819.4,0.818]
[1746453637579,0.7884,1820.4,1819.5,6.04601538]
[1746453638009,0.7884,1820.4,1819.5,6.55232591]
[1746453638218,0.35922015,1819.6,1819.5,7.37012591]
[1746453638515,0.35922015,1819.6,1819.5,2.06112312]
[1746453638711,0.35922015,1819.6,1819.5,1.32411053]
[1746453638923,0.35922015,1819.6,1819.5,1.87411053]
[1746453639212,0.35922015,1819.6,1819.5,1.32411053]
[1746453639565,0.35922015,1819.6,1819.5,0.50631053]
[1746453639898,0.35922015,1819.6,1819.3,0.50631053]
[1746453640113,0.11922634,1819.5,1819.3,1.22013055]
[1746453640296,0.11922634,1819.5,1819.4,0.7617]
[1746453640494,0.35922015,1819.6,1819.4,0.7617]
[1746453640736,0.20022015,1819.6,1819.4,0.50631053]
[1746453640919,0.8306,1819.6,1819.4,0.50631053]
[1746453641242,0.11747257,1819.5,1819.4,0.50631053]
[1746453641426,0.11747257,1819.5,1818.8,0.50631053]
[1746453641629,0.11747257,1819.5,1818.8,3.01224158]
[1746453641798,0.8059,1819.4,1818.8,0.50631053]
[1746453642007,0.757,1819.2,1818.8,0.50631053]
[1746453642241,0.10633919,1819.1,1818.9,0.02757838]
[1746453642602,0.10327838,1819.0,1818.4,0.02755214]
[1746453642905,0.757,1819.2,1818.3,0.50631053]
[1746453643119,0.757,1819.2,1818.4,0.02756129]
[1746453643323,0.7567,1819.0,1818.4,0.50631053]
[1746453643522,0.7567,1818.8,1818.4,0.50631053]
[1746453643914,0.06873462,1818.7,1818.4,0.50631053]
[1746453644337,0.7567,1818.6,1818.4,0.50631053]
[1746453644548,0.7567,1818.6,1818.0,0.60505593]
[1746453645031,0.06873881,1818.5,1818.0,0.60505593]
[1746453645232,0.06873881,1818.5,1817.9,0.02763239]
[1746453645631,0.06873881,1818.5,1817.5,0.02763239]
[1746453645948,0.7567,1818.6,1817.6,5.50176056]
[1746453645949,7.2397,1818.6,1817.6,5.50176056]
[1746453646102,0.7567,1818.6,1817.7,0.02760486]
[1746453646301,0.7567,1818.6,1817.7,0.5805414]
[1746453646556,0.7567,1818.6,1817.8,0.50400304]
[1746453646706,0.7567,1818.6,1817.9,0.02760327]
[1746453647128,0.7567,1818.6,1818.0,0.02759711]
[1746453647348,0.7567,1818.6,1818.0,0.82749711]
[1746453648353,0.7567,1818.6,1817.9,6.483]
[1746453648531,0.7567,1818.6,1818.0,0.6483]
[1746453649047,0.7661,1818.9,1818.1,6.07785436]
[1746453649373,6.483,1819.5,1818.3,5.49964252]
[1746453649374,0.7661,1819.4,1818.3,5.49964252]
[1746453649519,0.06870841,1819.3,1818.4,6.483]
[1746453649720,0.06870841,1819.3,1818.5,0.6483]
[1746453649922,0.06870841,1819.3,1818.6,0.02756604]
[1746453650144,0.83481398,1819.4,1818.6,0.02756604]
[1746453650720,0.83481398,1819.4,1818.5,0.6483]
[1746453650928,0.83481398,1819.4,1818.6,0.02758124]
[1746453651147,0.83481398,1819.4,1818.3,0.0275823]
[1746453651460,0.7661,1819.4,1818.4,1.31840003]
[1746453651757,0.7661,1819.4,1818.5,5.49903766]
[1746453651985,0.7661,1819.4,1818.4,6.98570003]
[1746453652121,0.7661,1819.4,1818.5,0.69857]
[1746453652320,0.0687129,1819.3,1818.5,0.69857]
[1746453652622,0.06871631,1819.5,1818.6,0.02756389]
[1746453652820,0.07371557,1819.9,1818.7,0.7988]
[1746453653058,0.72928713,1819.9,1818.8,0.02754343]
[1746453653258,0.72928713,1819.9,1818.7,0.7988]
[1746453653464,1.13805911,1819.9,1818.7,0.7988]
[1746453653671,0.72928713,1819.9,1818.7,7.2808]
[1746453653842,0.07371557,1819.9,1818.8,5.49813063]
[1746453654168,0.005,1819.9,1819.0,5.49752611]
[1746453654494,0.005,1819.9,1819.0,0.55]
[1746453654769,0.005,1819.9,1819.1,0.50354947]
[1746453655067,0.005,1819.9,1819.2,6.50950544]
[1746453655256,0.7674,1819.9,1819.3,0.65095054]
[1746453655631,0.0686897,1819.8,1819.1,2.89023659]
[1746453655826,0.7622,1819.7,1819.1,2.89023659]
[1746453656031,0.7622,1819.7,1819.2,0.02753749]
[1746453656265,0.005,1819.9,1819.2,0.02753749]
[1746453656266,13.53361786,1820.0,1819.2,0.05495976]
[1746453656468,0.0411722,1819.9,1819.2,0.05495976]
[1746453656654,0.0411722,1819.9,1819.2,0.3494794]
[1746453656943,0.0411722,1819.9,1819.1,2.89023659]
[1746453657371,3.0411722,1819.9,1819.1,2.89023659]
[1746453657559,3.0,1819.6,1818.5,5.34118066]
[1746453657767,0.0411722,1819.5,1818.6,0.05497582]
[1746453658071,0.0411722,1819.5,1818.6,0.05497037]
[1746453658231,0.0411722,1819.5,1818.6,0.59458547]
[1746453658431,0.0411722,1819.5,1818.6,0.59458456]
[1746453658968,0.0411722,1819.5,1818.6,0.5396151]
[1746453659137,0.0411722,1819.5,1818.6,0.59458782]
[1746453659472,0.2758,1819.4,1818.6,0.59458782]
[1746453659665,0.0411722,1819.3,1818.6,0.59458782]
[1746453659869,0.2758,1819.2,1818.6,0.59458782]
[1746453660029,0.2758,1819.2,1818.6,0.05497272]
[1746453660240,0.2758,1819.2,1818.5,5.49903766]
[1746453660449,0.2758,1819.2,1818.5,6.04903766]
[1746453660665,0.2758,1819.2,1818.3,7.302]
[1746453660862,0.2758,1819.2,1818.5,5.49903766]
[1746453661045,0.2758,1819.2,1818.6,0.0549624]
[1746453661244,0.2758,1819.2,1818.4,1.23428902]
[1746453661571,0.2758,1819.2,1818.5,0.05496632]
[1746453662266,0.2758,1819.5,1818.6,5.49873529]
[1746453662571,0.2758,1819.5,1818.7,0.60483429]
[1746453662776,0.2758,1819.5,1818.7,0.05496076]
[1746453663546,0.2758,1819.5,1818.4,3.61823203]
[1746453663547,6.481,1819.5,1818.4,3.61823203]
[1746453663873,0.3169722,1819.4,1818.3,3.62308203]
[1746453664040,0.3169722,1819.4,1818.5,0.05497316]
[1746453664381,0.2758,1819.3,1818.3,3.62308203]
[1746453664561,0.2758,1819.0,1818.3,3.62308203]
[1746453664734,0.2758,1818.8,1818.3,3.62308203]
[1746453664939,0.2758,1818.5,1818.3,3.62308203]
[1746453665139,0.3169722,1818.4,1818.3,3.62308203]
[1746453665552,3.3169722,1818.4,1818.3,3.11358611]
[1746453665751,3.4496081,1818.4,1817.7,4.64261066]
[1746453665979,8.70345284,1818.2,1817.7,4.64261066]
[1746453666196,3.0411722,1818.1,1817.7,4.64261066]
[1746453666351,3.0411722,1818.1,1817.6,3.6266757]
[1746453666766,8.70345284,1817.9,1817.6,3.6266757]
[1746453667122,0.0411722,1817.8,1817.6,3.6266757]
[1746453667685,0.44555476,1817.8,1817.6,3.6266757]
[1746453668274,5.94684906,1817.8,1817.6,3.6266757]
[1746453668578,1.04023967,1817.8,1817.6,3.6266757]
[1746453668781,5.500143,1818.2,1817.7,5.50145788]
[1746453668991,0.0411722,1818.1,1817.8,5.50104008]
[1746453669159,5.54147607,1818.1,1817.6,3.6266757]
[1746453669363,5.50076159,1818.0,1817.6,3.6266757]
[1746453669674,3.41248924,1818.2,1817.8,5.50115524]
[1746453669992,0.0411722,1818.1,1817.9,5.50069454]
[1746453670141,0.0411722,1818.3,1818.1,5.50002988]
[1746453670349,0.0411722,1818.6,1817.5,5.50206327]
[1746453670560,0.0411722,1818.6,1818.3,5.49962941]
[1746453670871,0.0411722,1818.9,1818.5,5.49903766]
[1746453671055,0.0411722,1819.0,1818.7,5.49836298]
[1746453671383,0.0411722,1819.0,1818.9,5.49782835]
[1746453671584,6.484,1819.5,1819.0,5.49741527]
[1746453671791,0.6895722,1819.4,1819.0,5.49741527]
[1746453672094,0.6895722,1819.4,1819.1,5.49711507]
[1746453672249,0.6895722,1819.4,1818.3,12.80649207]
[1746453672250,0.6895722,1819.4,1818.9,5.4977578]
[1746453672443,0.0411722,1819.4,1819.1,5.49717038]
[1746453672779,0.0411722,1819.4,1818.4,5.49934007]
[1746453672987,8.70345284,1819.3,1818.7,5.49818953]
[1746453673148,0.0411722,1819.2,1818.6,5.49856]
[1746453673349,8.70345284,1819.0,1818.6,5.49856]
[1746453673549,8.70345284,1819.0,1818.5,5.49888407]
[1746453673550,0.91151748,1818.9,1818.5,5.49891084]
[1746453673990,3.91151748,1818.9,1818.4,5.49915243]
[1746453674296,3.91151748,1818.9,1818.4,5.4992056]
[1746453674496,8.70345284,1818.7,1817.0,5.50333328]
[1746453674780,3.91151748,1818.9,1817.1,5.43281066]
[1746453674781,8.70345284,1818.4,1817.1,5.43281066]
[1746453674999,0.0411722,1818.3,1817.9,5.50081575]
[1746453675178,0.0411722,1818.3,1817.7,5.50145788]
[1746453675352,0.0411722,1818.3,1817.8,5.50091837]
[1746453675549,0.0411722,1818.3,1817.9,5.50074389]
[1746453675756,0.0411722,1818.3,1818.1,5.5000481]
[1746453676087,0.9156347,1818.3,1818.0,5.50035058]